fUST/lending_fUST_20250923
["ID","MTS","AMOUNT","RATE_DAILY","PERIOD"]
[387085794,1758569270210,9543.31,0.00018,2]
[387085795,1758569270233,5664.39068181,0.00018,2]
[387085802,1758569313615,4335.61931819,0.00017,2]
[387085803,1758569313636,10000.01,0.00017,2]
[387085804,1758569313659,3462.83091206,0.00017,2]
[387085805,1758569316047,2432.14031286,0.00015,2]
[387085827,1758569432247,-300.0,0.00019057,2]
[387085828,1758569432258,-300.0,0.00019057,2]
[387085829,1758569432269,-110.17380002,0.00019057,2]
[387085831,1758569432300,-74.82619998,0.00019057,2]
[387085833,1758569432311,-300.0,0.00019057,2]
[387085835,1758569432322,-300.0,0.00019057,2]
[387085837,1758569432333,-1125.40146051,0.00019057,2]
[387085840,1758569432358,-74.59853949,0.00019057,2]
[387085843,1758569432369,-581.33192236,0.00019057,2]
[387085845,1758569432381,-246.89191985,0.00019057,2]
[387085847,1758569432395,-581.33192236,0.00019057,2]
[387085849,1758569432406,-581.33192236,0.00019057,2]
[387085851,1758569432417,-415.67770654,0.00019057,2]
[387085854,1758569432430,-581.33192236,0.00019057,2]
[387085856,1758569432440,-581.33192236,0.00019057,2]
[387085858,1758569432450,-581.33192236,0.00019057,2]
[387085860,1758569432459,-581.33192236,0.00019057,2]
[387085862,1758569432469,-581.33192236,0.00019057,2]
[387085864,1758569432479,-581.33192236,0.00019057,2]
[387085866,1758569432488,-581.33192236,0.00019057,2]
[387085868,1758569432498,-581.33192236,0.00019057,2]
[387085870,1758569432508,-18741.35810517,0.00019058,2]
[387085872,1758569432521,-639.58423946,0.00019058,2]
[387085875,1758569432533,-20389.20006217,0.00019058,2]
[387085877,1758569432547,-99363.14839816,0.00019058,2]
[387085879,1758569432560,-19223.213024,0.00019058,2]
[387086327,1758569438581,-359.1962722,0.00019057,2]
[387086328,1758569438592,-222.13565016,0.00019057,2]
[387086329,1758569438601,-581.33192236,0.00019057,2]
[387086330,1758569438610,-581.33192236,0.00019057,2]
[387086331,1758569438619,-581.33192236,0.00019057,2]
[387086332,1758569438628,-12.49822291,0.00019057,2]
[387086334,1758569438639,-568.83369945,0.00019057,2]
[387086336,1758569438648,-230.5232086,0.00019057,2]
[387086337,1758569438657,-278.49201975,0.00019057,2]
[387086484,1758569440516,-221.50798025,0.00019057,2]
[387086486,1758569440526,-412.08183659,0.00019057,2]
[387086488,1758569440535,-581.33192236,0.00019057,2]
[387086490,1758569440545,-10311.86574129,0.00019058,2]
[387086737,1758569443261,-10510.93524809,0.00019058,2]
[387086739,1758569443271,-167.44808106,0.00019067,2]
[387086741,1758569443280,-500.0,0.00019073,2]
[387086743,1758569443289,-8400.3544315,0.00019078,2]
[387086750,1758569443336,-17475.80223935,0.00019078,2]
[387086752,1758569443347,-898.0,0.00019078,2]
[387086756,1758569443371,-29520.04389766,0.00019078,2]
[387086760,1758569443403,-75.98171836,0.00019078,2]
[387087080,1758569446413,-24687.1132384,0.00019078,2]
[387087082,1758569446423,-7605.9452371,0.00019125,2]
[387087084,1758569446432,-155.0,0.00019177,2]
[387087086,1758569446442,-480.0,0.00019178,2]
[387087088,1758569446451,-480.0,0.00019178,2]
[387087090,1758569446461,-480.0,0.00019178,2]
[387087092,1758569446470,-480.0,0.00019178,2]
[387087095,1758569446479,-480.0,0.00019178,2]
[387087096,1758569446488,-480.0,0.00019178,2]
[387087098,1758569446497,-480.0,0.00019178,2]
[387087100,1758569446506,-480.0,0.00019178,2]
[387087102,1758569446515,-482.56660982,0.00019178,2]
[387087104,1758569446525,-480.0,0.00019178,2]
[387087107,1758569446535,-480.0,0.00019178,2]
[387087109,1758569446544,-482.1727177,0.00019178,2]
[387087111,1758569446553,-480.0,0.00019178,2]
[387087112,1758569446562,-619.3184268,0.00019178,2]
[387087114,1758569446571,-481.23899459,0.00019178,2]
[387087116,1758569446580,-482.50733348,0.00019178,2]
[387087118,1758569446589,-480.0,0.00019178,2]
[387087120,1758569446598,-481.3360348,0.00019178,2]
[387087122,1758569446607,-480.0,0.00019178,2]
[387087124,1758569446616,-480.0,0.00019178,2]
[387087126,1758569446625,-480.0,0.00019178,2]
[387087128,1758569446634,-480.0,0.00019178,2]
[387087130,1758569446643,-480.0,0.00019178,2]
[387087132,1758569446652,-157.1190119,0.00019178,2]
[387087135,1758569446662,-480.0,0.00019178,2]
[387087137,1758569446671,-548.23,0.00019178,2]
[387087139,1758569446679,-480.0,0.00019178,2]
[387087141,1758569446689,-480.0,0.00019178,2]
[387087143,1758569446698,-480.0,0.00019178,2]
[387087145,1758569446706,-480.0,0.00019178,2]
[387087147,1758569446716,-480.0,0.00019178,2]
[387087149,1758569446724,-480.0,0.00019178,2]
[387087151,1758569446733,-480.0,0.00019178,2]
[387087153,1758569446742,-480.0,0.00019178,2]
[387087155,1758569446752,-500.0,0.00019178,2]
[387087157,1758569446761,-480.0,0.00019178,2]
[387087159,1758569446771,-480.0,0.00019178,2]
[387087161,1758569446780,-500.0,0.00019178,2]
[387087163,1758569446789,-292.5,0.00019178,2]
[387087165,1758569446798,-480.0,0.00019178,2]
[387087167,1758569446806,-480.0,0.00019178,2]
[387087169,1758569446815,-480.0,0.00019178,2]
[387087171,1758569446824,-481.12912723,0.00019178,2]
[387087173,1758569446833,-480.0,0.00019178,2]
[387087175,1758569446842,-480.0,0.00019178,2]
[387087177,1758569446851,-480.0,0.00019178,2]
[387087179,1758569446860,-480.0,0.00019178,2]
[387087181,1758569446869,-480.0,0.00019178,2]
[387087183,1758569446878,-491.23160383,0.00019178,2]
[387087185,1758569446886,-480.0,0.00019178,2]
[387087187,1758569446898,-480.0,0.00019178,2]
[387087189,1758569446908,-480.0,0.00019178,2]
[387087191,1758569446917,-480.0,0.00019178,2]
[387087193,1758569446926,-480.0,0.00019178,2]
[387087195,1758569446935,-480.0,0.00019178,2]
[387087197,1758569446944,-443.96247478,0.00019178,2]
[387087199,1758569446953,-480.0,0.00019178,2]
[387087201,1758569446962,-433.09410856,0.00019178,2]
[387087203,1758569446971,-480.0,0.00019178,2]
[387087205,1758569446981,-480.0,0.00019178,2]
[387087207,1758569446990,-480.0,0.00019178,2]
[387087209,1758569446999,-480.0,0.00019178,2]
[387087211,1758569447008,-480.0,0.00019178,2]
[387087213,1758569447017,-480.0,0.00019178,2]
[387087215,1758569447026,-480.0,0.00019178,2]
[387087217,1758569447035,-480.0,0.00019178,2]
[387087219,1758569447045,-532.33934526,0.00019178,2]
[387087221,1758569447053,-480.0,0.00019178,2]
[387087222,1758569447063,-485.91945091,0.00019178,2]
[387087224,1758569447072,-480.0,0.00019178,2]
[387087226,1758569447081,-480.0,0.00019178,2]
[387087228,1758569447090,-171.47703213,0.00019178,2]
[387087230,1758569447099,-480.0,0.00019178,2]
[387087232,1758569447108,-480.0,0.00019178,2]
[387087234,1758569447117,-480.0,0.00019178,2]
[387087236,1758569447127,-480.0,0.00019178,2]
[387087238,1758569447135,-480.0,0.00019178,2]
[387087240,1758569447145,-480.0,0.00019178,2]
[387087242,1758569447154,-481.80623496,0.00019178,2]
[387087244,1758569447163,-417.26741725,0.00019178,2]
[387087247,1758569447173,-480.0,0.00019178,2]
[387087248,1758569447182,-480.0,0.00019178,2]
[387087250,1758569447191,-480.0,0.00019178,2]
[387087252,1758569447200,-479.99561426,0.00019178,2]
[387087254,1758569447209,-480.0,0.00019178,2]
[387087256,1758569447219,-480.0,0.00019178,2]
[387087258,1758569447228,-480.0,0.00019178,2]
[387087261,1758569447238,-480.0,0.00019178,2]
[387087263,1758569447247,-480.0,0.00019178,2]
[387087265,1758569447257,-540.11091389,0.00019178,2]
[387087267,1758569447266,-480.0,0.00019178,2]
[387087269,1758569447275,-480.0,0.00019178,2]
[387087271,1758569447284,-493.58209321,0.00019178,2]
[387087273,1758569447293,-480.0,0.00019178,2]
[387087275,1758569447303,-480.0,0.00019178,2]
[387087277,1758569447312,-480.0,0.00019178,2]
[387087279,1758569447321,-480.0,0.00019178,2]
[387087281,1758569447330,-386.5074979,0.00019178,2]
[387087282,1758569447339,-480.0,0.00019178,2]
[387087285,1758569447349,-480.0,0.00019178,2]
[387087287,1758569447358,-507.56372822,0.00019178,2]
[387087288,1758569447367,-480.0,0.00019178,2]
[387087291,1758569447376,-552.35654303,0.00019178,2]
[387087293,1758569447386,-480.0,0.00019178,2]
[387087295,1758569447395,-480.0,0.00019178,2]
[387087297,1758569447404,-480.0,0.00019178,2]
[387087299,1758569447413,-572.22352257,0.00019178,2]
[387087301,1758569447423,-480.0,0.00019178,2]
[387087303,1758569447432,-1112.98,0.00019178,2]
[387087305,1758569447442,-480.0,0.00019178,2]
[387087307,1758569447451,-480.0,0.00019178,2]
[387087309,1758569447461,-480.0,0.00019178,2]
[387087311,1758569447470,-2283.36,0.00019178,2]
[387087313,1758569447479,-480.0,0.00019178,2]
[387087315,1758569447489,-480.0,0.00019178,2]
[387087317,1758569447498,-480.0,0.00019178,2]
[387087319,1758569447507,-480.0,0.00019178,2]
[387087321,1758569447516,-480.0,0.00019178,2]
[387087323,1758569447525,-480.0,0.00019178,2]
[387087325,1758569447535,-480.0,0.00019178,2]
[387087327,1758569447544,-480.0,0.00019178,2]
[387087329,1758569447553,-480.0,0.00019178,2]
[387087331,1758569447562,-480.0,0.00019178,2]
[387087333,1758569447571,-480.0,0.00019178,2]
[387087335,1758569447583,-574.29,0.00019178,2]
[387087337,1758569447592,-480.0,0.00019178,2]
[387087339,1758569447601,-480.0,0.00019178,2]
[387087341,1758569447610,-480.0,0.00019178,2]
[387087343,1758569447619,-480.0,0.00019178,2]
[387087345,1758569447629,-480.0,0.00019178,2]
[387087347,1758569447638,-480.0,0.00019178,2]
[387087349,1758569447647,-480.0,0.00019178,2]
[387087351,1758569447657,-480.0,0.00019178,2]
[387087353,1758569447667,-480.0,0.00019178,2]
[387087355,1758569447677,-480.0,0.00019178,2]
[387087357,1758569447686,-480.0,0.00019178,2]
[387087359,1758569447695,-480.0,0.00019178,2]
[387087361,1758569447704,-480.0,0.00019178,2]
[387087363,1758569447713,-480.0,0.00019178,2]
[387087365,1758569447722,-480.0,0.00019178,2]
[387087367,1758569447731,-480.0,0.00019178,2]
[387087369,1758569447740,-480.0,0.00019178,2]
[387087371,1758569447749,-480.0,0.00019178,2]
[387087373,1758569447758,-480.0,0.00019178,2]
[387087375,1758569447767,-480.0,0.00019178,2]
[387087377,1758569447776,-480.0,0.00019178,2]
[387087379,1758569447786,-483.34748842,0.00019178,2]
[387087380,1758569447795,-480.0,0.00019178,2]
[387087382,1758569447803,-500.0,0.00019178,2]
[387087384,1758569447813,-480.0,0.00019452,2]
[387087387,1758569447822,-480.0,0.00019452,2]
[387087389,1758569447832,-480.0,0.00019452,2]
[387087391,1758569447841,-480.0,0.00019452,2]
[387087393,1758569447850,-978.11473413,0.00019452,2]
[387087395,1758569447863,-134.86526587,0.00019452,2]
[387087397,1758569447872,-2283.36,0.00019452,2]
[387087399,1758569447882,-480.0,0.00019452,2]
[387087401,1758569447892,-480.0,0.00019452,2]
[387087403,1758569447907,-480.0,0.00019452,2]
[387087405,1758569447916,-480.0,0.00019452,2]
[387087407,1758569447925,-574.29,0.00019452,2]
[387087409,1758569447935,-480.0,0.00019452,2]
[387087411,1758569447944,-166.98,0.00019452,2]
[387087413,1758569447953,-480.0,0.00019452,2]
[387087415,1758569447963,-480.0,0.00019452,2]
[387087417,1758569447975,-480.0,0.00019452,2]
[387087419,1758569447985,-480.0,0.00019452,2]
[387087421,1758569447994,-480.0,0.00019452,2]
[387087423,1758569448003,-480.0,0.00019452,2]
[387087425,1758569448012,-480.0,0.00019452,2]
[387087427,1758569448022,-480.0,0.00019452,2]
[387087429,1758569448031,-480.0,0.00019452,2]
[387087431,1758569448041,-480.0,0.00019726,2]
[387087433,1758569448053,-480.0,0.00019726,2]
[387087435,1758569448063,-556.11,0.00019726,2]
[387087449,1758569448188,-480.0,0.00019726,2]
[387087451,1758569448198,-1112.98,0.00019726,2]
[387087453,1758569448207,-2283.36,0.00019726,2]
[387087455,1758569448217,-480.0,0.00019726,2]
[387087457,1758569448227,-480.0,0.00019726,2]
[387087459,1758569448236,-480.0,0.00019726,2]
[387087461,1758569448245,-480.0,0.00019726,2]
[387087463,1758569448255,-574.29,0.00019726,2]
[387087465,1758569448264,-480.0,0.00019726,2]
[387087467,1758569448274,-480.0,0.00019726,2]
[387087469,1758569448283,-480.0,0.00019726,2]
[387087471,1758569448293,-480.0,0.00019726,2]
[387087474,1758569448302,-480.0,0.00019726,2]
[387087476,1758569448312,-480.0,0.00019726,2]
[387087478,1758569448321,-480.0,0.00019726,2]
[387087480,1758569448331,-480.0,0.00019726,2]
[387087482,1758569448340,-480.0,0.00019726,2]
[387087484,1758569448350,-4623.49322266,0.000199,2]
[387087486,1758569448359,-480.0,0.0002,2]
[387087488,1758569448369,-480.0,0.0002,2]
[387087490,1758569448378,-480.0,0.0002,2]
[387087492,1758569448387,-468.52053858,0.0002,2]
[387087495,1758569448405,-644.45946142,0.0002,2]
[387087496,1758569448415,-2283.36,0.0002,2]
[387087499,1758569448426,-480.0,0.0002,2]
[387087500,1758569448436,-473.18,0.0002,2]
[387087502,1758569448445,-480.0,0.0002,2]
[387087505,1758569448456,-480.0,0.0002,2]
[387087507,1758569448465,-574.29,0.0002,2]
[387087509,1758569448475,-480.0,0.0002,2]
[387087511,1758569448485,-480.0,0.0002,2]
[387087513,1758569448495,-480.0,0.0002,2]
[387087515,1758569448503,-480.0,0.0002,2]
[387087517,1758569448512,-154.97,0.0002,2]
[387087519,1758569448521,-480.0,0.0002,2]
[387087521,1758569448531,-480.0,0.0002,2]
[387087522,1758569448540,-480.0,0.0002,2]
[387087524,1758569448550,-480.0,0.0002,2]
[387087526,1758569448559,-480.0,0.00020273,2]
[387087529,1758569448568,-480.0,0.00020273,2]
[387087531,1758569448579,-480.0,0.00020273,2]
[387087533,1758569448589,-1112.98,0.00020273,2]
[387087535,1758569448599,-2283.36,0.00020273,2]
[387087537,1758569448609,-480.0,0.00020273,2]
[387087539,1758569448618,-480.0,0.00020273,2]
[387087541,1758569448628,-480.0,0.00020273,2]
[387087543,1758569448637,-574.29,0.00020273,2]
[387087545,1758569448647,-480.0,0.00020273,2]
[387087547,1758569448658,-480.0,0.00020273,2]
[387087549,1758569448667,-480.0,0.00020273,2]
[387087551,1758569448676,-480.0,0.00020273,2]
[387087553,1758569448686,-480.0,0.00020273,2]
[387087555,1758569448695,-555.02,0.00020273,2]
[387087557,1758569448704,-480.0,0.00020273,2]
[387087559,1758569448713,-480.0,0.00020273,2]
[387087561,1758569448723,-480.0,0.00020547,2]
[387087563,1758569448732,-480.0,0.00020547,2]
[387087565,1758569448741,-484.35,0.00020547,2]
[387087567,1758569448750,-396.91225791,0.00020547,2]
[387087569,1758569448762,-716.06774209,0.00020547,2]
[387087571,1758569448771,-2283.36,0.00020547,2]
[387087573,1758569448780,-396.22418887,0.00020547,2]
[387087575,1758569448790,-480.0,0.00020547,2]
[387087577,1758569448799,-572.93,0.00020547,2]
[387087579,1758569448809,-574.29,0.00020547,2]
[387087581,1758569448818,-480.0,0.00020547,2]
[387087583,1758569448827,-480.0,0.00020547,2]
[387087585,1758569448836,-485.5,0.00020547,2]
[387087587,1758569448846,-480.0,0.00020547,2]
[387087589,1758569448855,-480.0,0.00020547,2]
[387087591,1758569448864,-480.0,0.00020547,2]
[387087593,1758569448874,-1369.07499805,0.0002061,2]
[387087596,1758569448884,-788.8414543,0.00020716,2]
[387087598,1758569448896,-8880.40114416,0.00020721,2]
[387087600,1758569448907,-420.0,0.00020771,2]
[387087602,1758569448917,-480.0,0.00020821,2]
[387087604,1758569448926,-480.0,0.00020821,2]
[387087606,1758569448936,-1112.98,0.00020821,2]
[387087608,1758569448945,-60.33047253,0.00020821,2]
[387088565,1758569554816,-1239.06159269,0.00018957,2]
[387088566,1758569561068,500.0,0.00018957,2]
[387088567,1758569561095,348.33537941,0.00018957,2]
[387088568,1758569561122,218.68412905,0.00018957,2]
[387088569,1758569561154,500.0,0.00018957,2]
[387088570,1758569561233,500.0,0.00018957,2]
[387088571,1758569561261,500.0,0.00018957,2]
[387088572,1758569561288,500.0,0.00018957,2]
[387088573,1758569561319,500.0,0.00018957,2]
[387088574,1758569561346,500.0,0.00018957,2]
[387088575,1758569561373,500.0,0.00018957,2]
[387088576,1758569561400,500.0,0.00018957,2]
[387088577,1758569561430,500.0,0.00018957,2]
[387088578,1758569561464,475.16486668,0.00018957,2]
[387088579,1758569561572,500.0,0.00018957,2]
[387088580,1758569561655,500.0,0.00018957,2]
[387088581,1758569561684,479.70243948,0.00018957,2]
[387088582,1758569561707,20.29756052,0.00018957,2]
[387088583,1758569561735,500.0,0.00018957,2]
[387088584,1758569561763,500.0,0.00018957,2]
[387088585,1758569561831,500.0,0.00018957,2]
[387088586,1758569562009,500.0,0.00018957,2]
[387088587,1758569562063,500.0,0.00018957,2]
[387088588,1758569562091,500.0,0.00018957,2]
[387088589,1758569562187,500.0,0.00018957,2]
[387088590,1758569562785,500.0,0.00018957,2]
[387088591,1758569577641,500.0,0.00018957,2]
[387088592,1758569577915,500.0,0.00018957,2]
[387088593,1758569578009,500.0,0.00018957,2]
[387088594,1758569578044,500.0,0.00018957,2]
[387088595,1758569578160,500.0,0.00018957,2]
[387088596,1758569578268,350.0,0.00018957,2]
[387088597,1758569583250,300.0,0.00018957,2]
[387088598,1758569591281,284.3767397,0.00018956,2]
[387088599,1758569642829,300.0,0.00018957,2]
[387088600,1758569702764,300.0,0.00018957,2]
[387088601,1758569706848,1200.0,0.00018957,2]
[387088602,1758569762545,300.0,0.00018957,2]
[387088603,1758569803940,445.33569978,0.00018956,2]
[387088604,1758569803969,638.84319378,0.00018956,2]
[387088608,1758569822864,300.0,0.00018957,2]
[387088611,1758569836372,1200.0,0.00018957,2]
[387088613,1758569882331,300.0,0.00018957,2]
[387088616,1758569942390,300.0,0.00018957,2]
[387088618,1758570002190,300.0,0.00018957,2]
[387088619,1758570007013,1200.0,0.00018957,2]
[387088620,1758570062364,300.0,0.00018957,2]
[387088621,1758570067224,445.6527982,0.00018321,2]
[387088624,1758570122382,300.0,0.00018957,2]
[387088625,1758570134024,185.878852,0.00018209,2]
[387088626,1758570182360,300.0,0.00018957,2]
[387088627,1758570202777,151.0,0.000184,2]
[387088628,1758570203061,151.0,0.000171,2]
[387088629,1758570204233,205.8572176,0.00018209,2]
[387088631,1758570242795,300.0,0.00018957,2]
[387088632,1758570302622,300.0,0.00018957,2]
[387088633,1758570306982,856.0,0.00018957,2]
[387088635,1758570362596,300.0,0.00018957,2]
[387088636,1758570422684,300.0,0.00018957,2]
[387088637,1758570456535,302.60665372,0.000189,2]
[387088638,1758570458269,-6016.73996116,0.00018958,2]
[387088639,1758570458297,-10000.01,0.00018958,2]
[387088640,1758570458336,-10000.01,0.00018958,2]
[387088641,1758570458443,-10000.01,0.00018958,2]
[387088642,1758570482311,300.0,0.00018957,2]
[387088644,1758570542816,300.0,0.00018957,2]
[387088646,1758570602223,300.0,0.00018957,2]
[387088701,1758570637969,-759.398,0.00018958,2]
[387088708,1758570638022,-35365.00920831,0.00018958,2]
[387088710,1758570638034,-640.79212053,0.00018958,2]
[387088714,1758570638076,-307.22883729,0.00018958,2]
[387088955,1758570640351,-352.14524183,0.00018958,2]
[387088966,1758570640454,-12430.22730943,0.00018958,2]
[387089260,1758570643392,-154259.45137001,0.00018958,2]
[387089262,1758570643402,-979.05752133,0.00018973,2]
[387089264,1758570643411,-8355.04909354,0.00019078,2]
[387089266,1758570643420,-12173.37304092,0.00019078,2]
[387089268,1758570643429,-302.60665368,0.00019089,2]
[387089270,1758570643438,-500.0,0.00019173,2]
[387089272,1758570643449,-500.0,0.00019173,2]
[387089274,1758570643459,-500.0,0.00019173,2]
[387089276,1758570643468,-500.0,0.00019173,2]
[387089278,1758570643477,-500.0,0.00019173,2]
[387089280,1758570643487,-172.60979925,0.00019173,2]
[387089282,1758570643496,-500.0,0.00019173,2]
[387089284,1758570643505,-261.18786908,0.00019173,2]
[387089286,1758570643514,-500.0,0.00019173,2]
[387089288,1758570643524,-500.0,0.00019173,2]
[387089290,1758570643533,-180.78574367,0.00019178,2]
[387089292,1758570643542,-483.2219411,0.00019178,2]
[387089294,1758570643552,-480.0,0.00019178,2]
[387089296,1758570643561,-480.0,0.00019178,2]
[387089298,1758570643570,-477.59203125,0.00019178,2]
[387089300,1758570643579,-480.0,0.00019178,2]
[387089302,1758570643588,-480.0,0.00019178,2]
[387089304,1758570643597,-480.0,0.00019178,2]
[387089306,1758570643606,-480.0,0.00019178,2]
[387089308,1758570643615,-480.0,0.00019178,2]
[387089310,1758570643624,-480.0,0.00019178,2]
[387089312,1758570643634,-485.53099758,0.00019178,2]
[387089314,1758570643643,-511.98257675,0.00019178,2]
[387089316,1758570643652,-480.0,0.00019178,2]
[387089318,1758570643661,-480.0,0.00019178,2]
[387089320,1758570643670,-480.0,0.00019178,2]
[387089322,1758570643679,-480.0,0.00019178,2]
[387089324,1758570643689,-481.46767904,0.00019178,2]
[387089326,1758570643702,-480.0,0.00019178,2]
[387089328,1758570643711,-480.0,0.00019178,2]
[387089330,1758570643720,-480.0,0.00019178,2]
[387089332,1758570643730,-480.0,0.00019178,2]
[387089334,1758570643739,-480.0,0.00019178,2]
[387089336,1758570643748,-480.0,0.00019178,2]
[387089338,1758570643757,-448.39019703,0.00019178,2]
[387089340,1758570643768,-480.0,0.00019178,2]
[387089342,1758570643777,-480.0,0.00019178,2]
[387089344,1758570643786,-480.0,0.00019178,2]
[387089346,1758570643795,-480.0,0.00019178,2]
[387089348,1758570643804,-480.0,0.00019178,2]
[387089350,1758570643813,-480.0,0.00019178,2]
[387089352,1758570643822,-480.0,0.00019178,2]
[387089354,1758570643831,-480.0,0.00019178,2]
[387089356,1758570643840,-480.0,0.00019178,2]
[387089358,1758570643850,-480.0,0.00019178,2]
[387089360,1758570643859,-487.57067147,0.00019178,2]
[387089362,1758570643868,-480.0,0.00019178,2]
[387089364,1758570643878,-480.0,0.00019178,2]
[387089366,1758570643888,-480.0,0.00019178,2]
[387089368,1758570643897,-480.0,0.00019178,2]
[387089370,1758570643906,-480.0,0.00019178,2]
[387089372,1758570643915,-480.0,0.00019178,2]
[387089374,1758570643924,-480.0,0.00019178,2]
[387089376,1758570643933,-480.0,0.00019178,2]
[387089378,1758570643942,-480.0,0.00019178,2]
[387089380,1758570643953,-480.0,0.00019178,2]
[387089382,1758570643964,-151.0,0.00019178,2]
[387089384,1758570643973,-151.0,0.00019178,2]
[387089386,1758570643983,-151.0,0.00019178,2]
[387089388,1758570643993,-151.0,0.00019178,2]
[387089390,1758570644003,-480.0,0.00019178,2]
[387089392,1758570644012,-480.0,0.00019178,2]
[387089394,1758570644021,-480.0,0.00019178,2]
[387089396,1758570644030,-480.0,0.00019178,2]
[387089398,1758570644039,-480.0,0.00019178,2]
[387089400,1758570644048,-480.0,0.00019178,2]
[387089402,1758570644058,-500.0,0.00019178,2]
[387089404,1758570644067,-500.0,0.00019178,2]
[387089406,1758570644076,-500.0,0.00019178,2]
[387089408,1758570644085,-500.0,0.00019178,2]
[387089410,1758570644094,-500.0,0.00019178,2]
[387089412,1758570644103,-500.0,0.00019178,2]
[387089414,1758570644112,-316.96453978,0.00019178,2]
[387089416,1758570644121,-480.0,0.00019178,2]
[387089418,1758570644130,-480.0,0.00019178,2]
[387089420,1758570644140,-480.0,0.00019178,2]
[387089422,1758570644149,-480.0,0.00019178,2]
[387089424,1758570644159,-480.0,0.00019178,2]
[387089426,1758570644168,-481.59823953,0.00019178,2]
[387089428,1758570644177,-480.0,0.00019178,2]
[387089430,1758570644188,-480.0,0.00019178,2]
[387089433,1758570644198,-480.0,0.00019178,2]
[387089434,1758570644207,-151.0,0.00019178,2]
[387089436,1758570644216,-173.930104,0.00019178,2]
[387089439,1758570644226,-480.0,0.00019178,2]
[387089440,1758570644235,-480.0,0.00019178,2]
[387089442,1758570644244,-328.45911657,0.00019178,2]
[387089444,1758570644253,-480.0,0.00019178,2]
[387089446,1758570644262,-480.0,0.00019178,2]
[387089448,1758570644271,-480.0,0.00019178,2]
[387089450,1758570644282,-481.03107887,0.00019178,2]
[387089452,1758570644293,-480.0,0.00019178,2]
[387089454,1758570644302,-166.751128,0.00019178,2]
[387089456,1758570644311,-166.751128,0.00019178,2]
[387089458,1758570644320,-166.751128,0.00019178,2]
[387089460,1758570644330,-166.751128,0.00019178,2]
[387089462,1758570644339,-481.00157961,0.00019178,2]
[387089464,1758570644349,-480.0,0.00019178,2]
[387089467,1758570644359,-480.0,0.00019178,2]
[387089468,1758570644369,-480.0,0.00019178,2]
[387089470,1758570644378,-480.0,0.00019178,2]
[387089472,1758570644387,-480.0,0.00019178,2]
[387089474,1758570644397,-480.0,0.00019178,2]
[387089476,1758570644406,-543.62273585,0.00019178,2]
[387089478,1758570644417,-480.0,0.00019178,2]
[387089480,1758570644426,-539.57150584,0.00019178,2]
[387089483,1758570644436,-502.46215697,0.00019178,2]
[387089485,1758570644447,-480.0,0.00019178,2]
[387089487,1758570644456,-162.872621,0.00019178,2]
[387089489,1758570644465,-394.09621607,0.00019178,2]
[387089491,1758570644475,-480.0,0.00019178,2]
[387089493,1758570644483,-480.0,0.00019178,2]